bitfinex/quotes_SOLUSD_20240818
["timestamp","ask_amount","ask_price","bid_price","bid_amount"]
[1723997662737,8.87,145.92,145.84,6.6063]
[1723997663169,8.56640693,145.93,145.84,6.6063]
[1723997663468,6.8527,145.93,145.84,6.6063]
[1723997664038,1.71384675,145.92,145.84,6.6063]
[1723997664257,10.58384675,145.92,145.84,6.6063]
[1723997664653,8.87,145.9,145.84,6.6063]
[1723997664871,46.71423186,145.89,145.84,6.6063]
[1723997665459,53.56903186,145.89,145.8,21.4202]
[1723997667082,51.8548,145.89,145.8,21.4202]
[1723997669768,53.5690328,145.89,145.8,21.4202]
[1723997671364,6.8549,145.88,145.8,21.4202]
[1723997671548,46.71429235,145.87,145.8,21.4202]
[1723997672991,46.71429235,145.87,145.8,12.5502]
[1723997675878,16.43856409,145.86,145.8,6.5257]
[1723997676181,54.28326292,145.85,145.8,6.5257]
[1723997676484,7.56856409,145.84,145.8,6.5257]
[1723997676662,1.71465674,145.83,145.8,6.5257]
[1723997677682,1.71465795,145.84,145.8,6.5257]
[1723997677882,7.5677834,145.83,145.8,6.5257]
[1723997678186,1.71465667,145.82,145.8,6.5257]
[1723997678386,1.71465815,145.84,145.8,6.5257]
[1723997681883,45.0,145.85,145.8,6.5257]
[1723997682056,1.71449351,145.84,145.8,6.5257]
[1723997682391,1.71446078,145.86,145.8,6.5257]
[1723997682559,7.56873282,145.85,145.8,6.5257]
[1723997682759,6.8555,145.87,145.8,6.5257]
[1723997683070,7.56875707,145.86,145.8,6.5257]
[1723997683259,7.56875707,145.85,145.8,6.5257]
[1723997683460,1.71436078,145.86,145.8,6.5257]
[1723997683670,9.28306772,145.85,145.8,6.5257]
[1723997683888,15.725,145.88,145.8,6.5257]
[1723997684190,7.5689447,145.87,145.8,6.5257]
[1723997684367,9.28339529,145.86,145.8,6.5257]
[1723997684684,1.71445637,145.85,145.8,6.5257]
[1723997685457,51.8554,145.87,145.8,6.5257]
[1723997685653,9.28198302,145.86,145.8,6.5257]
[1723997685881,51.8554,145.87,145.8,6.5257]
[1723997686087,9.28195035,145.86,145.8,6.5257]
[1723997686265,51.8554,145.87,145.8,6.5257]
[1723997686471,7.56758811,145.86,145.8,6.5257]
[1723997686680,45.0,145.87,145.8,6.5257]
[1723997686992,6.8545,145.89,145.81,8.87]
[1723997687197,52.56832621,145.88,145.81,8.87]
[1723997687361,7.56832621,145.87,145.81,8.87]
[1723997687562,45.0,145.88,145.81,8.87]
[1723997688061,6.854,145.9,145.83,8.87]
[1723997688261,7.56871968,145.89,145.83,8.87]
[1723997688482,7.56871968,145.88,145.83,8.87]
[1723997688983,6.854,145.9,145.83,8.87]
[1723997689193,9.28287854,145.89,145.83,8.87]
[1723997689495,7.56881575,145.88,145.83,8.87]
[1723997689694,6.854,145.9,145.83,8.87]
[1723997689871,54.28277031,145.89,145.83,8.87]
[1723997690074,7.5687077,145.88,145.83,8.87]
[1723997690294,1.71406267,145.88,145.83,8.87]
[1723997690599,1.7140579,145.88,145.83,8.87]
[1723997693571,15.6973,145.91,145.82,6.0245]
[1723997693572,15.6973,145.91,145.85,8.87]
[1723997693881,7.56985697,145.9,145.85,8.87]
[1723997694077,15.6973,145.91,145.85,8.87]
[1723997694276,7.56996579,145.9,145.85,8.87]
[1723997694475,15.6973,145.91,145.85,8.87]
[1723997694677,16.8393758,145.94,145.85,15.3459]
[1723997694874,7.57064339,145.93,145.85,15.3459]
[1723997695077,9.28432941,145.92,145.85,15.3459]
[1723997695278,7.57092439,145.91,145.85,15.3459]
[1723997695596,9.28487366,145.91,145.85,15.3459]
[1723997695771,6.8526,145.93,145.85,15.3459]
[1723997695973,7.57183229,145.92,145.85,15.3459]
[1723997696180,21.9778,145.94,145.85,15.3459]
[1723997696390,7.57183407,145.93,145.85,15.3459]
[1723997696569,7.57183407,145.92,145.85,15.3459]
[1723997696771,21.9778,145.94,145.85,15.3459]
[1723997696970,52.57182095,145.93,145.85,15.3459]
[1723997697297,7.57182095,145.92,145.85,15.3459]
[1723997697983,7.57182095,145.92,145.87,8.87]
[1723997699174,45.0,145.93,145.87,8.87]
[1723997699377,45.0,145.94,145.87,8.87]
[1723997699583,7.57221783,145.93,145.87,8.87]
[1723997699884,7.57221783,145.93,145.87,14.8945]
[1723997702491,15.7208,145.97,145.89,8.87]
[1723997702798,52.57079097,145.96,145.89,8.87]
[1723997702985,7.57079097,145.95,145.89,8.87]
[1723997703169,7.57079097,145.94,145.89,8.87]
[1723997703368,45.0,145.96,145.89,8.87]
[1723997703595,7.57081962,145.95,145.89,8.87]
[1723997703781,7.57081962,145.94,145.9,6.1489]
[1723997703986,22.116,145.98,145.9,6.1489]
[1723997704178,52.57093435,145.97,145.9,6.1489]
[1723997704390,9.28415357,145.96,145.9,6.1489]
[1723997704581,7.57093435,145.95,145.9,6.1489]
[1723997704790,7.57093435,145.94,145.9,6.1489]
[1723997705101,1.71321566,145.97,145.9,6.1489]
[1723997705274,7.57112733,145.96,145.9,6.1489]
[1723997705605,9.28449705,145.95,145.9,6.1489]
[1723997705778,7.57112733,145.94,145.9,6.1489]
[1723997705978,1.71336,145.93,145.9,6.1489]
[1723997706189,1.71336859,145.96,145.9,6.1489]
[1723997706505,9.28438308,145.95,145.9,6.1489]
[1723997706702,1.71336144,145.95,145.9,6.1489]
[1723997710212,45.0,145.96,145.9,6.1489]
[1723997710378,7.57098833,145.95,145.9,6.1489]
[1723997710708,45.0,145.96,145.9,6.1489]
[1723997710876,7.57105707,145.95,145.9,6.1489]
[1723997711076,45.0,145.96,145.9,6.1489]
[1723997711272,7.57105707,145.95,145.9,6.1489]
[1723997711493,45.0,145.96,145.9,6.1489]
[1723997711684,9.28443357,145.95,145.9,6.1489]
[1723997711894,45.0,145.96,145.9,6.1489]
[1723997712078,1.71334954,145.94,145.9,6.1489]
[1723997712285,45.0,145.96,145.9,6.1489]
[1723997712503,7.57107904,145.95,145.9,6.1489]
[1723997712674,45.0,145.96,145.9,6.1489]
[1723997712878,7.57106138,145.95,145.9,6.1489]
[1723997713074,45.0,145.96,145.9,6.1489]
[1723997713507,7.57101934,145.95,145.9,6.1489]
[1723997713700,45.0,145.96,145.9,6.1489]
[1723997714012,9.28437023,145.95,145.9,6.1489]
[1723997714216,1.71334958,145.95,145.9,6.1489]
[1723997714702,45.0,145.96,145.9,6.1489]
[1723997716115,1.71337328,145.95,145.9,6.1489]
[1723997717005,10.58339982,145.95,145.87,6.0245]
[1723997717189,45.0,145.94,145.87,6.0245]
[1723997721587,15.2657,145.98,145.88,8.87]
[1723997721790,14.41850301,145.97,145.88,8.87]
[1723997721996,7.56750301,145.96,145.88,8.87]
[1723997722395,7.56750301,145.96,145.9,8.87]
[1723997722603,22.116,145.98,145.91,6.1143]
[1723997722803,7.56803869,145.97,145.91,6.1143]
[1723997723007,7.56803869,145.96,145.91,6.1143]
[1723997723209,22.116,145.98,145.91,6.1143]
[1723997723383,9.2811577,145.97,145.91,6.1143]
[1723997723717,7.56793562,145.96,145.91,6.1143]
[1723997723883,1.71325765,145.95,145.91,6.1143]
[1723997724085,22.116,145.98,145.91,6.1143]
[1723997724402,7.56817837,145.97,145.91,6.1143]
[1723997724603,52.56817837,145.96,145.91,6.1143]
[1723997724902,7.56817837,145.95,145.91,6.1143]
[1723997725116,22.116,145.98,145.91,6.1143]
[1723997725311,52.56809718,145.97,145.91,6.1143]
[1723997725607,7.56809718,145.96,145.91,6.1143]
[1723997725825,7.56809718,145.95,145.91,6.1143]
[1723997726003,45.0,145.97,145.91,6.1143]
[1723997726203,7.56799957,145.96,145.91,6.1143]
[1723997726505,7.56799957,145.95,145.91,6.1143]
[1723997726714,45.0,145.97,145.91,6.1143]
[1723997727003,7.5658388,145.96,145.91,6.1143]
[1723997727225,7.5658388,145.95,145.91,6.1143]
[1723997727524,7.56565518,145.94,145.91,6.1143]
[1723997727717,45.0,145.97,145.91,6.1143]
[1723997727891,7.56693728,145.96,145.91,6.1143]
[1723997728093,7.56693728,145.95,145.91,6.1143]
[1723997728304,7.5669577,145.94,145.91,6.1143]
[1723997728499,6.8499,145.99,145.91,6.1143]
[1723997728709,7.56698004,145.98,145.91,6.1143]
[1723997728998,7.56698004,145.97,145.92,14.8945]
[1723997729205,15.7194,146.0,145.92,14.8945]
[1723997729418,7.5683685,145.99,145.92,14.8945]
[1723997729720,7.5683685,145.98,145.92,14.8945]
[1723997729918,9.28134702,145.97,145.92,14.8945]
[1723997730220,1.71297852,145.97,145.92,6.0245]
[1723997731101,15.7194,146.0,145.92,6.0245]
[1723997731102,1.7129816,145.99,145.92,6.0245]
[1723997731298,9.28220091,145.98,145.92,6.0245]
[1723997731509,7.56921931,145.97,145.92,6.0245]
[1723997731820,1.7129816,145.98,145.92,6.0245]
[1723997731995,7.56925,145.97,145.92,6.0245]
[1723997732200,1.7129816,145.98,145.92,6.0245]
[1723997732402,7.56919903,145.97,145.92,6.0245]
[1723997732616,45.0,145.99,145.92,6.0245]
[1723997732818,7.56920553,145.98,145.92,6.0245]
[1723997733021,9.28218453,145.97,145.92,6.0245]
[1723997733304,7.56918377,145.96,145.92,6.0245]
[1723997733504,1.712979,145.97,145.92,6.0245]
[1723997733703,7.56919515,145.96,145.92,6.0245]
[1723997734018,1.712979,145.97,145.92,6.0245]
[1723997734217,18.15163296,145.96,145.91,6.1143]
[1723997734420,9.28182535,145.95,145.91,6.1143]
[1723997734596,8.87,145.96,145.91,6.1143]
[1723997734597,7.56848147,145.94,145.91,6.1143]
[1723997734797,8.87,145.96,145.91,6.1143]
[1723997735015,7.5674535,145.95,145.91,6.1143]
[1723997735224,7.56728049,145.94,145.91,6.1143]
[1723997735420,15.7202,145.98,145.91,6.1143]
[1723997735598,7.56726765,145.97,145.91,14.9843]
[1723997735925,7.56726765,145.96,145.91,14.9843]
[1723997736108,7.56726765,145.95,145.91,14.9843]
[1723997736291,51.8498,145.99,145.91,14.9843]
[1723997736498,7.56556176,145.98,145.93,8.87]
[1723997736717,6.8493,146.0,145.93,8.87]
[1723997736718,7.56556176,145.97,145.93,8.87]
[1723997737024,7.56556176,145.96,145.93,8.87]
[1723997737216,7.56556176,145.95,145.91,14.9843]
[1723997737417,8.56217417,146.0,145.91,14.9843]
[1723997737725,7.56544973,145.99,145.91,14.9843]
[1723997737926,9.27838796,145.98,145.91,14.9843]
[1723997738100,7.56544973,145.97,145.91,14.9843]
[1723997738304,7.56544973,145.96,145.91,14.9843]
[1723997738497,7.56544973,145.95,145.91,14.9843]
[1723997738701,1.71292646,145.98,145.91,14.9843]
[1723997739000,7.5659072,145.97,145.91,14.9843]
[1723997739221,7.5659072,145.96,145.91,14.9843]
[1723997739437,7.5659072,145.95,145.91,14.9843]
[1723997739601,1.71301647,145.98,145.91,14.9843]
[1723997739922,7.56588407,145.97,145.91,14.9843]
[1723997740131,1.71301647,145.98,145.91,14.9843]
[1723997740132,7.56588407,145.96,145.91,14.9843]
[1723997740428,7.56588407,145.95,145.91,14.9843]
[1723997740623,7.56588407,145.94,145.91,14.9843]
[1723997740800,45.0,145.99,145.91,14.9843]
[1723997740997,7.56583232,145.98,145.91,14.9843]
[1723997741304,9.27883799,145.97,145.91,14.9843]
[1723997741502,7.56583232,145.96,145.91,14.9843]
[1723997741705,7.56583232,145.95,145.91,14.9843]
[1723997741923,7.56583232,145.94,145.91,14.9843]
[1723997742130,45.0,145.99,145.91,14.9843]
[1723997742315,7.56592829,145.98,145.91,14.9843]
[1723997742502,7.56592829,145.97,145.91,6.1143]
[1723997742702,7.56592829,145.96,145.91,6.1143]
[1723997742915,7.56592829,145.95,145.91,6.1143]
[1723997743120,7.56592829,145.94,145.91,6.1143]
[1723997743306,45.0,145.99,145.91,6.1143]
[1723997743517,7.56585652,145.98,145.91,6.1143]
[1723997743717,7.56585652,145.97,145.91,6.1143]
[1723997743902,7.56585652,145.96,145.91,6.1143]
[1723997744107,7.56585652,145.95,145.91,6.1143]
[1723997744308,7.56585652,145.94,145.91,6.1143]
[1723997744522,45.0,145.99,145.91,6.1143]
[1723997744722,7.5657353,145.98,145.91,6.1143]
[1723997744919,7.5657353,145.97,145.91,6.1143]
[1723997745125,7.5657353,145.96,145.91,6.1143]
[1723997745317,7.5657353,145.95,145.91,6.1143]
[1723997745515,7.5657353,145.94,145.91,6.1143]
[1723997745712,1.7130087,145.98,145.91,6.1143]
[1723997745908,7.56379668,145.97,145.91,6.1143]
[1723997746116,7.56379668,145.96,145.91,6.1143]
[1723997746329,7.56379668,145.95,145.91,6.1143]
[1723997746636,7.56379668,145.94,145.91,6.1143]
[1723997746935,1.7130087,145.98,145.91,6.1143]
[1723997747105,7.56327773,145.97,145.91,6.1143]
[1723997747408,1.7130087,145.98,145.91,6.1143]
[1723997747731,7.56327117,145.97,145.91,6.1143]
[1723997747930,7.56327117,145.96,145.91,6.1143]
[1723997748230,1.7130087,145.98,145.91,6.1143]
[1723997748231,7.56327117,145.95,145.91,6.1143]
[1723997748403,7.56327117,145.94,145.91,6.1143]
[1723997748612,45.0,145.99,145.91,6.1143]
[1723997748816,7.56314146,145.98,145.91,6.1143]
[1723997749010,7.56314146,145.97,145.91,6.1143]
[1723997749221,7.56314146,145.96,145.91,6.1143]
[1723997749412,7.56314146,145.95,145.91,6.1143]
[1723997749604,7.56314146,145.94,145.91,6.1143]
[1723997749809,45.0,145.99,145.91,6.1143]
[1723997750014,7.56022345,145.98,145.91,6.1143]
[1723997750317,52.56022345,145.97,145.91,6.1143]
[1723997750633,9.27336072,145.96,145.91,6.1143]
[1723997750806,7.56022345,145.95,145.91,6.1143]
[1723997751011,7.56022345,145.94,145.91,6.1143]
[1723997751208,46.71314179,145.97,145.91,6.1143]
[1723997751436,7.55940512,145.96,145.91,6.1143]
[1723997751730,9.27228245,145.95,145.91,6.1143]
[1723997751937,7.55913728,145.94,145.91,6.1143]
[1723997752104,1.71314517,145.95,145.91,6.1143]
[1723997752309,7.55912947,145.94,145.91,6.1143]
[1723997752507,45.0,145.97,145.91,6.1143]
[1723997752704,7.56196103,145.96,145.91,6.1143]
[1723997752910,7.56196103,145.95,145.91,6.1143]
[1723997753138,7.56196103,145.94,145.91,6.1143]
[1723997753440,45.0,145.98,145.91,6.1143]
[1723997753615,7.56247085,145.97,145.91,6.1143]
[1723997753821,7.56247085,145.96,145.91,6.1143]
[1723997754018,45.0,145.98,145.91,6.1143]
[1723997754019,7.56247085,145.95,145.91,6.1143]
[1723997754244,7.56247085,145.94,145.91,14.9843]
[1723997754544,22.584,146.01,145.93,8.87]
[1723997754706,7.56221142,146.0,145.93,8.87]
[1723997754910,7.56221142,145.99,145.93,8.87]
[1723997755116,7.56221142,145.98,145.93,8.87]
[1723997755323,7.56221142,145.97,145.93,8.87]
[1723997755540,7.56221142,145.96,145.93,8.87]
[1723997755738,22.584,146.01,145.93,8.87]
[1723997756038,52.56219124,146.0,145.93,8.87]
[1723997756238,7.56219124,145.99,145.93,8.87]
[1723997756529,7.56219124,145.98,145.93,8.87]
[1723997756714,7.56219124,145.97,145.93,8.87]
[1723997756915,7.56219124,145.96,145.93,8.87]
[1723997757142,7.56219124,145.95,145.93,8.87]
[1723997757433,45.0,146.0,145.93,8.87]
[1723997757640,7.56213908,145.99,145.93,8.87]
[1723997757817,7.56213908,145.98,145.93,8.87]
[1723997758137,45.0,146.0,145.93,8.87]
[1723997758138,7.56213908,145.97,145.93,8.87]
[1723997758440,7.56213908,145.96,145.91,14.9843]
[1723997758740,7.56213908,145.95,145.91,14.9843]
[1723997758945,1.71284046,145.99,145.91,14.9843]
[1723997759108,1.71297416,145.98,145.91,14.9843]
[1723997759512,60.7194,146.0,145.91,14.9843]
[1723997762541,60.7194,146.0,145.92,1.37037373]
[1723997762748,60.7194,146.0,145.91,14.9843]
[1723997763629,45.0,146.0,145.92,1.37034907]
[1723997763831,53.87,146.0,145.91,14.9843]
[1723997767733,55.58285804,146.0,145.91,14.9843]
[1723997770236,53.87,146.0,145.91,14.9843]
[1723997771950,45.0,146.0,145.92,6.0245]
[1723997773754,15.7351,146.01,145.92,6.0245]
[1723997773925,15.7351,146.01,145.93,1.3702018]
[1723997774848,15.7351,146.01,145.93,21.3702018]
[1723997775034,15.7185,146.02,145.93,30.2402018]
[1723997775245,24.0496,146.05,145.95,8.87]
[1723997775823,25.76208306,146.05,145.95,8.87]
[1723997776032,1.71248223,146.04,145.95,8.87]
[1723997776247,30.8966,146.05,145.95,8.87]
[1723997776725,45.0,146.04,145.95,8.87]
[1723997777342,46.71247372,146.04,145.95,8.87]
[1723997778730,45.0,146.04,145.95,8.87]
[1723997778934,1.71237917,146.03,145.95,8.87]
[1723997779955,10.58237917,146.03,145.95,8.87]
[1723997780525,10.58237917,146.03,145.94,6.06]
[1723997780722,10.58237917,146.03,145.94,14.93]
[1723997781936,8.87,146.03,145.94,14.93]
[1723997782551,45.0,146.04,145.97,6.0245]
[1723997783236,45.0,146.04,145.98,6.4088]
[1723997783629,45.0,146.05,145.98,6.4088]
[1723997784034,45.0,146.05,145.98,15.2788]
[1723997785750,8.87,146.06,145.98,15.2788]
[1723997785927,15.6211,146.09,146.0,8.87]
[1723997786133,24.4911,146.09,146.01,1.36958359]
[1723997787234,15.6211,146.09,146.0,8.87]
[1723997787457,24.4911,146.09,146.0,8.87]
[1723997787651,8.55602872,146.11,146.02,6.4088]
[1723997787652,6.8441,146.11,146.02,6.4088]
[1723997787962,8.87,146.1,146.02,15.2788]
[1723997788739,7.7166613,146.12,146.02,15.2788]
[1723997789058,8.87,146.11,146.02,15.2788]
[1723997789655,45.0,146.1,146.02,15.2788]
[1723997791946,10.58171332,146.09,146.02,6.4088]
[1723997792140,45.0,146.08,146.02,6.4088]
[1723997794353,15.7142,146.11,146.02,15.2788]
[1723997794657,45.0,146.1,146.02,15.2788]
[1723997797347,7.7165613,146.12,146.04,8.87]
[1723997797549,45.0,146.11,146.04,8.87]
[1723997798468,0.8728613,146.12,146.04,8.87]
[1723997798839,45.8728613,146.12,146.04,8.87]
[1723997799461,10.58148747,146.11,146.02,15.2788]
[1723997799636,10.58148747,146.11,146.03,20.0]
[1723997800558,45.0,146.1,146.03,20.0]
[1723997800874,1.71163579,146.09,146.03,20.0]
[1723997801963,51.8449,146.1,146.02,6.4088]
[1723997802167,8.87,146.07,146.02,6.4088]
[1723997802377,1.71192683,146.06,146.02,6.4088]
[1723997802553,1.71192683,146.06,145.98,6.4725]
[1723997803873,8.87,146.07,145.98,6.4725]
[1723997804073,30.0,146.04,145.98,6.4725]
[1723997804663,30.0,146.04,145.99,8.87]
[1723997806043,30.0,146.04,146.0,8.87]
[1723997806243,30.0,146.04,145.99,8.87]
[1723997808954,8.87,146.07,145.99,8.87]
[1723997809449,10.58200414,146.07,145.99,8.87]
[1723997809669,8.87,146.07,145.99,8.87]
[1723997810167,15.7151,146.09,145.99,8.87]
[1723997810470,45.0,146.08,145.99,8.87]
[1723997811179,45.0,146.08,145.98,6.4725]
[1723997811180,15.7142,146.11,146.01,8.87]
[1723997811351,15.7142,146.11,146.01,14.8945]
[1723997811677,15.7142,146.11,146.02,6.4725]
[1723997812782,8.87,146.11,146.03,8.87]
[1723997812986,1.71170908,146.1,146.03,8.87]
[1723997813954,1.71170908,146.1,146.02,6.4725]
[1723997814150,46.71170908,146.1,146.02,6.4725]
[1723997815170,45.0,146.1,146.02,6.4725]
[1723997815350,0.8728613,146.12,146.02,15.3425]
[1723997815545,9.7428613,146.12,146.02,15.3425]
[1723997815773,45.0,146.11,146.02,15.3425]
[1723997815970,0.8728613,146.12,146.04,8.87]
[1723997817768,0.8728613,146.12,146.05,6.0245]
[1723997819557,1.71133851,146.11,146.05,6.0245]
[1723997819973,0.8728613,146.12,146.05,6.0245]
[1723997820553,1.71138577,146.11,146.05,6.0245]
[1723997820751,0.8728613,146.12,146.05,6.0245]
[1723997823784,0.8728613,146.12,146.06,6.0324]
[1723997825268,9.7428613,146.12,146.06,6.0324]
[1723997825563,1.71141172,146.11,146.06,6.0324]
[1723997825881,9.7428613,146.12,146.06,6.0324]
[1723997825882,1.71143121,146.1,146.06,6.0324]
[1723997826471,9.7428613,146.12,146.06,6.0324]
[1723997826678,1.7113916,146.11,146.06,6.0324]
[1723997826879,9.7428613,146.12,146.06,6.0324]
[1723997827058,11.45425021,146.12,146.06,6.0324]
[1723997827565,9.7428613,146.12,146.06,6.0324]
[1723997827770,0.8728613,146.12,146.06,6.0324]
[1723997827974,0.8728613,146.12,146.06,14.9024]
[1723997828162,0.8728613,146.12,146.07,20.0]
[1723997831785,0.8728613,146.12,146.06,14.9024]
[1723997832260,0.8728613,146.12,146.07,20.0]
[1723997832460,0.8728613,146.12,146.08,8.87]
[1723997835280,0.8728613,146.12,146.07,20.0]
[1723997839369,0.8728613,146.12,146.09,8.87]
[1723997839583,0.8728613,146.12,146.07,20.0]
[1723997839790,0.8728613,146.12,146.07,28.87]
[1723997840371,0.8728613,146.12,146.06,6.0324]
[1723997841094,1.7113931,146.11,146.02,6.6226]
[1723997841398,1.71162669,146.1,146.02,6.6226]
[1723997842595,1.71162669,146.1,146.03,20.0]
[1723997842800,1.71162669,146.1,146.03,28.87]
[1723997843014,0.8728613,146.12,146.05,8.87]
[1723997843298,0.8728613,146.12,146.07,8.87]
[1723997846386,0.8728613,146.12,146.09,8.87]
[1723997848311,0.8728613,146.12,146.06,12.6471]
[1723997848493,0.8728613,146.12,146.06,21.5171]
[1723997850488,0.8728613,146.12,146.06,6.6226]
[1723997850792,45.8728613,146.12,146.06,6.6226]
[1723997850988,54.7428613,146.12,146.03,26.6226]
[1723997851183,1.71156504,146.11,146.03,6.6226]
[1723997851387,8.87,146.1,146.03,6.6226]
[1723997851598,1.71167718,146.09,146.03,6.6226]
[1723997852012,1.71167718,146.09,146.02,6.0245]
[1723997852219,24.6227,146.08,145.99,6.6226]
[1723997852502,1.71202079,146.07,145.99,6.6226]
[1723997853507,1.71202079,146.07,146.0,20.0]
[1723997853920,24.6227,146.08,146.0,20.0]
[1723997854911,1.71198669,146.07,146.0,20.0]
[1723997855209,8.87,146.06,145.99,6.6226]
[1723997855402,1.7121854,146.05,145.99,6.6226]
[1723997855595,1.71219696,146.04,145.93,12.528]
[1723997855802,1.71219696,146.04,145.96,8.87]
[1723997856105,1.71227125,146.03,145.97,20.0]
[1723997856296,45.0,146.05,145.97,20.0]
[1723997857109,46.71228005,146.05,145.97,20.0]
[1723997857312,45.0,146.05,145.97,20.0]
[1723997859415,8.87,146.06,145.98,8.87]
[1723997859604,8.87,146.06,145.99,20.0]
[1723997861315,10.58221433,146.06,145.99,20.0]
[1723997861814,8.87,146.06,145.99,20.0]
[1723997864920,24.6227,146.08,146.0,8.87]
[1723997866317,1.71199088,146.07,146.0,8.87]
[1723997867417,1.71199088,146.07,145.99,20.0]
[1723997868318,46.71199088,146.07,145.99,20.0]
[1723997868512,45.0,146.07,145.99,20.0]
[1723997868712,24.6227,146.08,145.99,20.0]
[1723997868917,45.2427,146.08,145.99,20.0]
[1723997869115,1.71197572,146.07,145.99,20.0]
[1723997869417,45.0,146.07,145.99,20.0]
[1723997869829,24.6227,146.08,145.99,20.0]
[1723997873701,26.33469311,146.08,145.99,20.0]
[1723997873996,24.6227,146.08,145.99,20.0]
[1723997875218,24.6227,146.08,145.98,15.3735]
[1723997875731,24.6227,146.08,145.99,20.0]
[1723997877225,26.33469653,146.08,145.99,20.0]
[1723997877414,24.6227,146.08,145.99,20.0]
[1723997878701,45.0,146.07,145.99,20.0]
[1723997878934,1.71218451,146.06,145.99,20.0]
[1723997880005,10.58218451,146.06,145.98,6.5035]
[1723997880210,45.0,146.05,145.94,6.2745]
[1723997880414,38.87,146.02,145.94,6.2745]
[1723997880709,46.71273145,146.01,145.94,6.2745]
[1723997881016,30.0,146.02,145.94,6.2745]
[1723997881228,15.3048,146.03,145.95,8.87]
[1723997881428,1.71249222,146.02,145.95,8.87]
[1723997881727,1.71248665,146.01,145.95,8.87]
[1723997881937,23.8640866,146.06,145.97,8.87]
[1723997882100,15.3048,146.06,145.97,8.87]
[1723997882305,15.3048,146.06,145.98,20.0]
[1723997882605,15.3048,146.06,145.99,8.87]
[1723997882929,15.3048,146.1,146.01,8.87]
[1723997883098,24.1748,146.1,146.01,8.87]
[1723997883519,31.0197,146.1,146.01,8.87]
[1723997885720,45.0,146.09,146.01,8.87]
[1723997888010,8.87,146.08,146.0,6.2745]
[1723997888233,10.58185138,146.08,146.0,6.2745]
[1723997888821,1.71185138,146.08,146.0,6.2745]
[1723997890318,60.7151,146.09,146.01,8.87]
[1723997890319,45.0,146.09,146.01,8.87]
[1723997891422,46.71185639,146.09,146.01,8.87]
[1723997891632,45.0,146.09,146.01,8.87]
[1723997892031,1.71185651,146.08,146.01,8.87]
[1723997892207,1.71185748,146.07,146.01,8.87]
[1723997892409,1.71185748,146.07,146.0,6.2745]
[1723997892835,46.71185748,146.07,146.0,6.2745]
[1723997894124,45.0,146.07,146.0,6.2745]
[1723997894441,46.7120285,146.07,146.0,6.2745]
[1723997895518,45.0,146.07,146.0,6.2745]
[1723997895923,8.87,146.08,146.0,6.2745]
[1723997895924,10.58202077,146.08,146.0,6.2745]
[1723997896139,8.87,146.08,146.0,6.2745]
[1723997896445,31.0195,146.1,146.01,8.87]
[1723997896739,0.8728613,146.12,146.03,8.87]
[1723997896740,16.5865613,146.12,146.03,8.87]
[1723997897619,18.29816967,146.12,146.01,8.87]
[1723997897932,18.29816967,146.12,146.02,20.0]
[1723997898138,45.0,146.11,146.02,20.0]
[1723997899136,1.71163006,146.1,146.02,20.0]
[1723997899650,10.58163006,146.1,146.02,20.0]
[1723997899822,45.0,146.09,146.02,20.0]
[1723997900946,10.58177223,146.1,146.02,20.0]
[1723997900947,8.87,146.1,146.02,20.0]
[1723997901344,10.58161898,146.1,146.02,20.0]
[1723997901842,8.87,146.1,146.02,20.0]
[1723997902024,10.58162685,146.1,146.02,20.0]
[1723997904337,10.58162685,146.1,146.0,6.2745]
[1723997904338,8.87,146.08,146.0,6.2745]